fUSD/lending_fUSD_20241222
["ID","MTS","AMOUNT","RATE_DAILY","PERIOD"]
[346265125,1734850241665,-544.5,0.00019726,2]
[346265126,1734850241674,-1000.0,0.00019726,2]
[346265127,1734850241683,-1371.93,0.00019726,2]
[346265128,1734850241692,-500.0,0.00019726,2]
[346265129,1734850241701,-500.0,0.00019726,2]
[346265130,1734850241711,-782.26,0.00019726,2]
[346265131,1734850241720,-500.0,0.00019726,2]
[346265132,1734850241729,-854.97,0.00019726,2]
[346265133,1734850241738,-500.0,0.00019726,2]
[346265134,1734850241747,-818.13,0.00019726,2]
[346265135,1734850241756,-873.15,0.00019726,2]
[346265136,1734850241765,-151.08998967,0.00019726,2]
[346265137,1734850241774,-578.15,0.00019726,2]
[346265138,1734850241783,-500.0,0.00019726,2]
[346265139,1734850241793,-908.29,0.00019726,2]
[346265140,1734850241802,-500.0,0.00019726,2]
[346265141,1734850241810,-500.0,0.00019726,2]
[346265142,1734850241819,-500.0,0.00019726,2]
[346265143,1734850241829,-500.0,0.00019726,2]
[346265144,1734850241838,-4350.06,0.00019726,2]
[346265145,1734850241847,-500.0,0.00019726,2]
[346265146,1734850241856,-500.0,0.00019726,2]
[346265147,1734850241864,-3809.8,0.00019726,2]
[346265148,1734850241873,-500.0,0.00019726,2]
[346265149,1734850241883,-956.74,0.00019726,2]
[346265150,1734850241892,-500.0,0.00019726,2]
[346265151,1734850241903,-825.0,0.00019726,2]
[346265152,1734850241913,-771.47,0.00019726,2]
[346265153,1734850241924,-568.13,0.00019726,2]
[346265154,1734850241945,-4621.4,0.00019726,2]
[346265155,1734850241955,-1754.6,0.00019726,2]
[346265156,1734850241965,-500.0,0.00019726,2]
[346265157,1734850241975,-596.36,0.00019726,2]
[346265158,1734850241986,-500.0,0.00019726,2]
[346265159,1734850241996,-500.0,0.00019726,2]
[346265160,1734850242005,-500.0,0.00019726,2]
[346265161,1734850242015,-2476.22,0.00019726,2]
[346265162,1734850242024,-500.0,0.00019726,2]
[346265163,1734850242035,-472.72659928,0.00019726,2]
[346265164,1734850242045,-562.12,0.00019726,2]
[346265165,1734850242055,-923.51,0.00019726,2]
[346265166,1734850242065,-500.0,0.00019726,2]
[346265167,1734850242076,-500.0,0.00019726,2]
[346265168,1734850242087,-500.0,0.00019726,2]
[346265169,1734850242097,-1377.92,0.00019726,2]
[346265170,1734850242107,-500.0,0.00019726,2]
[346265171,1734850242118,-500.0,0.00019726,2]
[346265172,1734850242127,-951.29,0.00019726,2]
[346265173,1734850242136,-549.62,0.00019726,2]
[346265174,1734850242145,-1800.53,0.00019726,2]
[346265175,1734850242154,-598.53,0.00019726,2]
[346265176,1734850242164,-3333.26,0.00019726,2]
[346265177,1734850242173,-851.81,0.00019726,2]
[346265178,1734850242182,-706.82,0.00019726,2]
[346265179,1734850242194,-159.96168517,0.00019726,2]
[346265180,1734850242203,-717.18,0.00019726,2]
[346265181,1734850242212,-742.14,0.00019726,2]
[346265182,1734850242223,-500.0,0.00019726,2]
[346265183,1734850242234,-699.75,0.00019726,2]
[346265184,1734850242245,-1007.16,0.00019726,2]
[346265185,1734850242254,-500.0,0.00019726,2]
[346265186,1734850242266,-6041.04,0.00019726,2]
[346265187,1734850242277,-1009.27,0.00019726,2]
[346265188,1734850242287,-2163.21,0.00019726,2]
[346265189,1734850242296,-553.47,0.00019726,2]
[346265190,1734850242306,-500.0,0.00019726,2]
[346265191,1734850242316,-1330.65,0.00019726,2]
[346265192,1734850242326,-3080.95,0.00019726,2]
[346265193,1734850242336,-1394.02,0.00019726,2]
[346265194,1734850242346,-1755.48,0.00019726,2]
[346265195,1734850242355,-2248.84,0.00019726,2]
[346265196,1734850242365,-362.20335555,0.00019726,2]
[346265197,1734850242377,-1530.51,0.00019726,2]
[346265198,1734850242389,-691.25,0.00019726,2]
[346265199,1734850242400,-527.43,0.00019726,2]
[346265200,1734850242412,-983.95,0.00019726,2]
[346265201,1734850242424,-909.02,0.00019726,2]
[346265203,1734850242437,-3680.39,0.00019726,2]
[346265205,1734850242452,-500.0,0.00019726,2]
[346265206,1734850242461,-796.45,0.00019726,2]
[346265208,1734850242471,-7509.23,0.00019726,2]
[346265209,1734850242480,-1082.43,0.00019726,2]
[346265211,1734850242491,-500.0,0.00019726,2]
[346265212,1734850242500,-591.17,0.00019726,2]
[346265213,1734850242509,-500.0,0.00019726,2]
[346265214,1734850242518,-1118.26,0.00019726,2]
[346265215,1734850242528,-9250.96,0.00019726,2]
[346265216,1734850242537,-10731.94,0.00019726,2]
[346265217,1734850242546,-677.59,0.00019726,2]
[346265218,1734850242556,-2143.35,0.00019726,2]
[346265219,1734850242565,-4833.2,0.00019726,2]
[346265220,1734850242574,-500.0,0.00019726,2]
[346265221,1734850242583,-921.7,0.00019726,2]
[346265222,1734850242592,-3680.04,0.00019726,2]
[346265223,1734850242601,-500.0,0.00019726,2]
[346265224,1734850242610,-3108.46,0.00019726,2]
[346265225,1734850242620,-500.0,0.00019726,2]
[346265226,1734850242628,-553.31,0.00019726,2]
[346265227,1734850242637,-4080.83,0.00019726,2]
[346265228,1734850242646,-4256.74,0.00019726,2]
[346265229,1734850242655,-500.0,0.00019726,2]
[346265230,1734850242664,-548.69,0.00019726,2]
[346265231,1734850242673,-500.0,0.00019726,2]
[346265232,1734850242683,-444.87527019,0.00019726,2]
[346265233,1734850242693,-591.99,0.00019726,2]
[346265234,1734850242702,-511.56,0.00019726,2]
[346265235,1734850242712,-500.0,0.00019726,2]
[346265236,1734850242720,-1919.16,0.00019726,2]
[346265237,1734850242731,-1743.82,0.00019726,2]
[346265238,1734850242740,-867.09,0.00019726,2]
[346265239,1734850242750,-879.33,0.00019726,2]
[346265240,1734850242760,-1456.25,0.00019726,2]
[346265241,1734850242770,-500.0,0.00019726,2]
[346265242,1734850242780,-1089.73,0.00019726,2]
[346265243,1734850242790,-500.0,0.00019726,2]
[346265244,1734850242799,-2585.88,0.00019726,2]
[346265245,1734850242808,-161.33574911,0.00019773,2]
[346265246,1734850242817,-501.21574243,0.00019773,2]
[346265247,1734850242826,-500.0,0.00019773,2]
[346265248,1734850242835,-1128.0,0.000198,2]
[346265249,1734850242844,-291450.64426103,0.000198,2]
[346265250,1734850242853,-36500.83288736,0.000198,2]
[346265251,1734850242862,-300.0,0.000198,2]
[346265252,1734850242872,-919.6458941,0.000198,2]
[346265253,1734850242881,-500.0,0.000198,2]
[346265254,1734850242891,-500.0,0.000198,2]
[346265255,1734850242901,-500.0,0.000198,2]
[346265256,1734850242911,-500.0,0.000198,2]
[346265257,1734850242922,-500.0,0.000198,2]
[346265258,1734850242931,-500.0,0.000198,2]
[346265259,1734850242942,-500.0,0.000198,2]
[346265260,1734850242953,-500.0,0.000198,2]
[346265261,1734850242964,-500.0,0.000198,2]
[346265262,1734850242974,-500.0,0.000198,2]
[346265263,1734850242985,-151.0,0.00019828,2]
[346265264,1734850242995,-500.0,0.00019856,2]
[346265265,1734850243006,-150.0,0.00019864,2]
[346265266,1734850243017,-503.7156293,0.0001987,2]
[346265267,1734850243026,-983.3435637,0.00019877,2]
[346265268,1734850243039,-202.0,0.0001988,2]
[346265269,1734850243048,-202.0,0.0001988,2]
[346265270,1734850243058,-1047.0412334,0.00019886,2]
[346265271,1734850243067,-1110.738903,0.00019886,2]
[346265272,1734850243077,-1174.4365726,0.00019886,2]
[346265273,1734850243086,-210.0,0.0001989,2]
[346265274,1734850243096,-211.0,0.0001989,2]
[346265275,1734850243107,-40000.0,0.0001989,2]
[346265276,1734850243117,-800.0,0.0001989,2]
[346265277,1734850243126,-1662.74519003,0.000199,2]
[346265278,1734850243135,-4893.4811482,0.000199,7]
[346265279,1734850243144,-5800.0,0.000199,2]
[346265280,1734850243156,-34327.95321692,0.000199,2]
[346265281,1734850243165,-22192.91816403,0.000199,2]
[346265282,1734850243175,-858.38918186,0.000199,2]
[346265283,1734850243185,-99342.73074654,0.000199,2]
[346265284,1734850243195,-152.31,0.00019908,2]
[346265285,1734850243204,-500.0,0.00019928,30]
[346265286,1734850243214,-1238.1342423,0.00019946,2]
[346265287,1734850243225,-37717.84774908,0.0001996,2]
[346265288,1734850243235,-400.0,0.0001997,2]
[346265289,1734850243244,-400.0,0.0001997,2]
[346265290,1734850243254,-400.0,0.0001997,2]
[346265291,1734850243263,-500.7387074,0.00019973,2]
[346265292,1734850243272,-500.0,0.00019973,2]
[346265293,1734850243282,-11523.05692145,0.0001999,2]
[346265294,1734850243291,-21311.78300961,0.0001999,2]
[346265295,1734850243301,-225248.76718962,0.00019997,2]
[346265296,1734850243310,-56215.28988464,0.00019997,2]
[346265297,1734850243320,-150.0,0.00019998,2]
[346265298,1734850243331,-1156.0,0.00019998,2]
[346265299,1734850243341,-680.0,0.00019998,2]
[346265300,1734850243350,-500.0,0.00019999,2]
[346265301,1734850243359,-500.0,0.00019999,2]
[346265302,1734850243369,-2503.7,0.00019999,2]
[346265303,1734850243378,-1084.59,0.00019999,2]
[346265304,1734850243387,-795.43,0.00019999,2]
[346265305,1734850243396,-733.06,0.00019999,2]
[346265306,1734850243405,-500.94,0.00019999,2]
[346265307,1734850243415,-500.0,0.00019999,2]
[346265308,1734850243426,-660.44,0.00019999,2]
[346265309,1734850243435,-1817.62,0.00019999,2]
[346265310,1734850243447,-1258.73,0.00019999,2]
[346265311,1734850243456,-692.11,0.00019999,2]
[346265312,1734850243466,-1045.06,0.00019999,2]
[346265313,1734850243475,-13246.94,0.00019999,2]
[346265314,1734850243486,-1095.81,0.00019999,2]
[346265315,1734850243495,-754.43,0.00019999,2]
[346265316,1734850243504,-500.0,0.00019999,2]
[346265317,1734850243513,-774.23,0.00019999,2]
[346265318,1734850243524,-15819.58,0.00019999,2]
[346265319,1734850243533,-1315.52,0.00019999,2]
[346265320,1734850243542,-782.55,0.00019999,2]
[346265321,1734850243552,-150.0,0.00019999,2]
[346265322,1734850243561,-150.0,0.00019999,2]
[346265323,1734850243570,-583.96,0.00019999,2]
[346265324,1734850243580,-150.0,0.00019999,2]
[346265325,1734850243589,-150.0,0.00019999,2]
[346265326,1734850243599,-150.0,0.00019999,2]
[346265327,1734850243608,-150.0,0.00019999,2]
[346265328,1734850243617,-150.0,0.00019999,2]
[346265329,1734850243626,-150.0,0.00019999,2]
[346265330,1734850243635,-150.0,0.00019999,2]
[346265331,1734850243645,-150.0,0.00019999,2]
[346265332,1734850243655,-150.0,0.00019999,2]
[346265333,1734850243665,-150.0,0.00019999,2]
[346265334,1734850243674,-150.0,0.00019999,2]
[346265335,1734850243684,-5433.9,0.00019999,2]
[346265336,1734850243694,-150.0,0.00019999,2]
[346265337,1734850243703,-150.0,0.00019999,2]
[346265338,1734850243713,-150.0,0.00019999,2]
[346265339,1734850243723,-150.0,0.00019999,2]
[346265340,1734850243733,-150.0,0.00019999,2]
[346265341,1734850243743,-150.0,0.00019999,2]
[346265342,1734850243752,-150.0,0.00019999,2]
[346265343,1734850243762,-150.0,0.00019999,2]
[346265344,1734850243772,-150.0,0.00019999,2]
[346265345,1734850243782,-1752.73,0.00019999,2]
[346265346,1734850243793,-150.0,0.00019999,2]
[346265347,1734850243804,-205.82658135,0.00019999,2]
[346265348,1734850243815,-7905.58027353,0.0002,3]
[346265349,1734850243825,-1027671.84285361,0.0002,3]
[346265350,1734850243835,-1566.04238828,0.0002,2]
[346265351,1734850243846,-11835328.70582821,0.0002,2]
[346265352,1734850244085,-11931.7524051,0.0002,2]
[346265353,1734850244098,-10617.28579401,0.0002,2]
[346265354,1734850244111,-318.93789218,0.0002,2]
[346265355,1734850244130,-562.73308836,0.00019726,2]
[346265356,1734850244141,-1057.5811753,0.00019726,2]
[346265357,1734850244211,-186.21573634,0.00019726,2]
[346265358,1734850244220,-338.8217977,0.0002,2]
[346265359,1734850244232,-24429.42093988,0.0002,2]
[346265360,1734850244245,-4106.49371718,0.0002,2]
[346265361,1734850244258,-1293.34355368,0.0002,2]
[346265362,1734850244374,-7507.37194817,0.0002,2]
[346265363,1734850244459,-14934.03308031,0.0002,2]
[346265367,1734850245558,-1710.29729102,0.0002,2]
[346265368,1734850245570,-263.21584521,0.0002,2]
[346265370,1734850300578,8500.0,0.00010959,2]
[346265372,1734850503174,160.01895629,0.00012973,2]
[346265373,1734850503322,153.0,0.00018,30]
[346265374,1734850503667,153.0,0.00018,30]
[346265375,1734850504002,153.0,0.00018,30]
[346265376,1734850504358,153.0,0.00018,30]
[346265377,1734850504699,153.0,0.00018,30]
[346265378,1734850504988,153.0,0.00018,30]
[346265379,1734850505301,153.0,0.00018,30]
[346265380,1734850505643,153.0,0.00018,30]
[346265381,1734850505995,153.0,0.00018,30]
[346265382,1734850506310,153.0,0.00018,30]
[346265383,1734850506654,153.0,0.00018,30]
[346265384,1734850506975,153.0,0.00018,30]
[346265385,1734850507287,153.0,0.00018,30]
[346265386,1734850803209,155.0,0.00018,30]
[346265387,1734850803573,155.0,0.00018,30]
[346265388,1734850804263,155.0,0.00018,30]
[346265389,1734850804664,155.0,0.00018,30]
[346265390,1734850845289,2000.0,0.000184,120]
[346265391,1734851104592,156.0,0.00018,30]
[346265392,1734851105430,156.0,0.00018,30]
[346265401,1734851403440,158.48321308,0.00018,30]
[346265411,1734851431843,-231.82,0.00016825,2]
[346265412,1734851431852,-500.0,0.00017664,2]
[346265413,1734851431862,-150.0,0.00017975,2]
[346265414,1734851431871,-160.28,0.00018412,2]
[346265415,1734851431880,-198.78,0.00018512,2]
[346265416,1734851431889,-1000.0,0.00018515,2]
[346265417,1734851431900,-250.0,0.00018591,2]
[346265418,1734851431910,-171.07,0.00018683,2]
[346265419,1734851431920,-200.0,0.00018711,2]
[346265420,1734851431929,-387.659,0.00019,2]
[346265421,1734851431938,-7478.59670315,0.00019025,2]
[346265422,1734851431947,-152.32,0.00019075,2]
[346265423,1734851431956,-231.82,0.00019089,2]
[346265424,1734851431966,-1108.95998875,0.00019177,2]
[346265425,1734851431976,-500.0,0.00019178,2]
[346265426,1734851431985,-500.0,0.00019178,2]
[346265427,1734851431995,-500.0,0.00019178,2]
[346265428,1734851432005,-500.0,0.00019178,2]
[346265429,1734851432014,-500.0,0.00019178,2]
[346265430,1734851432023,-500.0,0.00019178,2]
[346265431,1734851432034,-500.0,0.00019178,2]
[346265432,1734851432045,-296.82981952,0.00019178,2]
[346265433,1734851432056,-500.0,0.00019178,2]
[346265434,1734851432067,-500.0,0.00019178,2]
[346265435,1734851432076,-500.0,0.00019178,2]
[346265436,1734851432086,-500.0,0.00019178,2]
[346265437,1734851432096,-500.0,0.00019178,2]
[346265438,1734851432106,-500.0,0.00019178,2]
[346265439,1734851432116,-500.0,0.00019178,2]
[346265440,1734851432126,-500.0,0.00019178,2]
[346265441,1734851432135,-500.0,0.00019178,2]
[346265442,1734851432145,-500.0,0.00019178,2]
[346265443,1734851432154,-500.0,0.00019178,2]
[346265444,1734851432163,-500.0,0.00019178,2]
[346265445,1734851432172,-500.0,0.00019178,2]
[346265446,1734851432182,-500.0,0.00019178,2]
[346265447,1734851432192,-500.0,0.00019178,2]
[346265448,1734851432202,-842.34,0.00019178,2]
[346265449,1734851432213,-500.0,0.00019178,2]
[346265450,1734851432223,-529.27,0.00019178,2]
[346265451,1734851432233,-578.0447294,0.00019178,2]
[346265452,1734851432245,-500.0,0.00019178,2]
[346265453,1734851432254,-500.0,0.00019178,2]
[346265454,1734851432263,-500.0,0.00019178,2]
[346265455,1734851432273,-379.24035918,0.00019178,2]
[346265456,1734851432285,-120.75964082,0.00019178,2]
[346265457,1734851432295,-500.0,0.00019178,2]
[346265458,1734851432304,-500.0,0.00019178,2]
[346265459,1734851432315,-500.0,0.00019178,2]
[346265460,1734851432325,-500.0,0.00019178,2]
[346265461,1734851432334,-500.0,0.00019178,2]
[346265462,1734851432345,-500.0,0.00019178,2]
[346265463,1734851432355,-500.0,0.00019178,2]
[346265464,1734851432367,-500.0,0.00019178,2]
[346265465,1734851432378,-500.0,0.00019178,2]
[346265466,1734851432389,-562.39,0.00019178,2]
[346265467,1734851432399,-500.0,0.00019178,2]
[346265468,1734851432408,-500.0,0.00019178,2]
[346265469,1734851432419,-500.0,0.00019178,2]
[346265470,1734851432429,-500.0,0.00019178,2]
[346265471,1734851432438,-500.0,0.00019178,2]
[346265472,1734851432447,-500.0,0.00019178,2]
[346265473,1734851432457,-500.0,0.00019178,2]
[346265474,1734851432466,-500.0,0.00019178,2]
[346265475,1734851432475,-500.0,0.00019178,2]
[346265476,1734851432484,-500.0,0.00019178,2]
[346265477,1734851432493,-828.67,0.00019178,2]
[346265478,1734851432502,-500.0,0.00019178,2]
[346265479,1734851432511,-299.49824026,0.00019178,2]
[346265480,1734851432519,-500.0,0.00019178,2]
[346265481,1734851432528,-500.0,0.00019178,2]
[346265482,1734851432537,-219.95389636,0.00019178,2]
[346265483,1734851432546,-500.0,0.00019178,2]
[346265484,1734851432555,-500.0,0.00019178,2]
[346265485,1734851432564,-500.0,0.00019178,2]
[346265486,1734851432573,-618.45,0.00019178,2]
[346265487,1734851432582,-500.0,0.00019178,2]
[346265488,1734851432591,-1180.25,0.00019178,2]
[346265489,1734851432601,-500.0,0.00019178,2]
[346265490,1734851432610,-1518.72,0.00019178,2]
[346265491,1734851432619,-763.78,0.00019178,2]
[346265492,1734851432629,-500.0,0.00019178,2]
[346265493,1734851432638,-500.0,0.00019178,2]
[346265494,1734851432651,-500.0,0.00019178,2]
[346265495,1734851432660,-500.0,0.00019178,2]
[346265496,1734851432670,-500.0,0.00019178,2]
[346265497,1734851432681,-501.62,0.00019178,2]
[346265498,1734851432691,-500.0,0.00019178,2]
[346265499,1734851432700,-500.0,0.00019178,2]
[346265500,1734851432710,-510.42,0.00019178,2]
[346265501,1734851432719,-500.0,0.00019178,2]
[346265502,1734851432728,-500.0,0.00019178,2]
[346265503,1734851432739,-521.81,0.00019178,2]
[346265504,1734851432749,-500.0,0.00019178,2]
[346265505,1734851432758,-500.0,0.00019178,2]
[346265506,1734851432767,-500.0,0.00019178,2]
[346265507,1734851432776,-500.0,0.00019178,2]
[346265508,1734851432788,-500.0,0.00019178,2]
[346265509,1734851432797,-500.0,0.00019178,2]
[346265510,1734851432805,-544.45,0.00019178,2]
[346265511,1734851432816,-500.0,0.00019178,2]
[346265512,1734851432826,-500.0,0.00019178,2]
[346265513,1734851432835,-500.0,0.00019178,2]
[346265514,1734851432844,-500.0,0.00019178,2]
[346265515,1734851432854,-500.0,0.00019178,2]
[346265516,1734851432863,-500.0,0.00019178,2]
[346265517,1734851432872,-1725.51,0.00019178,2]
[346265518,1734851432882,-967.22,0.00019178,2]
[346265519,1734851432891,-500.0,0.00019178,2]
[346265520,1734851432901,-930.14,0.00019178,2]
[346265521,1734851432911,-636.69,0.00019178,2]
[346265522,1734851432921,-581.0,0.00019178,2]
[346265523,1734851432931,-1676.82,0.00019178,2]
[346265524,1734851432940,-500.0,0.00019178,2]
[346265525,1734851432949,-500.0,0.00019178,2]
[346265526,1734851432958,-565.0,0.00019295,2]
[346265527,1734851432967,-3886.0,0.00019295,2]
[346265528,1734851432977,-150.0,0.00019295,2]
[346265529,1734851432986,-9042.6689,0.0001935,2]
[346265530,1734851432996,-1000.0,0.0001935,2]
[346265531,1734851433006,-13498.35259699,0.00019352,2]
[346265532,1734851433015,-13498.35259699,0.00019413,2]
[346265533,1734851433024,-7568.30332571,0.00019442,2]
[346265534,1734851433033,-288.4406745,0.00019442,2]
[346265535,1734851433043,-7568.30332571,0.00019444,2]
[346265536,1734851433052,-7568.30332571,0.00019447,2]
[346265537,1734851433061,-500.0,0.0001945,2]
[346265538,1734851433070,-500.0,0.0001945,2]
[346265539,1734851433079,-500.0,0.0001945,2]
[346265540,1734851433089,-500.0,0.0001945,2]
[346265541,1734851433098,-500.0,0.0001945,2]
[346265542,1734851433107,-1671.16,0.0001945,2]
[346265543,1734851433116,-500.0,0.0001945,2]
[346265544,1734851433125,-500.0,0.0001945,2]
[346265545,1734851433134,-500.0,0.0001945,2]
[346265546,1734851433143,-500.0,0.0001945,2]
[346265547,1734851433153,-805.42,0.0001945,2]
[346265548,1734851433162,-500.0,0.0001945,2]
[346265549,1734851433171,-500.0,0.0001945,2]
[346265550,1734851433182,-500.0,0.0001945,2]
[346265551,1734851433191,-500.0,0.0001945,2]
[346265552,1734851433201,-500.0,0.0001945,2]
[346265553,1734851433211,-500.0,0.0001945,2]
[346265554,1734851433220,-500.0,0.0001945,2]
[346265555,1734851433229,-500.0,0.0001945,2]
[346265556,1734851433238,-500.0,0.0001945,2]
[346265557,1734851433247,-500.0,0.0001945,2]
[346265558,1734851433257,-1289.24,0.0001945,2]
[346265559,1734851433267,-500.0,0.0001945,2]
[346265560,1734851433276,-500.0,0.0001945,2]
[346265561,1734851433285,-500.0,0.0001945,2]
[346265562,1734851433295,-581.76,0.0001945,2]
[346265563,1734851433304,-500.0,0.0001945,2]
[346265564,1734851433313,-500.0,0.0001945,2]
[346265565,1734851433323,-1150.46563,0.0001945,2]
[346265566,1734851433332,-500.0,0.0001945,2]
[346265567,1734851433342,-590.63588738,0.0001945,2]
[346265568,1734851433351,-500.0,0.0001945,2]
[346265569,1734851433361,-500.0,0.0001945,2]
[346265570,1734851433370,-556.02110157,0.0001945,2]
[346265571,1734851433379,-871.45,0.0001945,2]
[346265572,1734851433388,-884.734081,0.0001945,2]
[346265573,1734851433398,-634.95108189,0.0001945,2]
[346265574,1734851433407,-500.0,0.0001945,2]
[346265575,1734851433416,-500.0,0.0001945,2]
[346265576,1734851433425,-689.02,0.0001945,2]
[346265577,1734851433434,-500.0,0.0001945,2]
[346265578,1734851433444,-619.96190569,0.0001945,2]
[346265579,1734851433453,-500.0,0.0001945,2]
[346265580,1734851433463,-218.78192267,0.0001945,2]
[346265581,1734851433473,-500.0,0.0001945,2]
[346265582,1734851433482,-150.15928424,0.0001945,2]
[346265583,1734851433491,-1044.33,0.0001945,2]
[346265584,1734851433501,-500.0,0.0001945,2]
[346265585,1734851433510,-500.0,0.0001945,2]
[346265586,1734851433520,-500.0,0.0001945,2]
[346265587,1734851433529,-500.0,0.0001945,2]
[346265588,1734851433538,-500.0,0.0001945,2]
[346265589,1734851433548,-500.0,0.0001945,2]
[346265590,1734851433557,-527.14,0.0001945,2]
[346265591,1734851433567,-620.2,0.0001945,2]
[346265592,1734851433577,-500.0,0.0001945,2]
[346265593,1734851433586,-500.0,0.0001945,2]
[346265594,1734851433596,-500.0,0.0001945,2]
[346265595,1734851433605,-749.66,0.0001945,2]
[346265596,1734851433615,-510.24336896,0.0001945,2]
[346265597,1734851433624,-500.0,0.0001945,2]
[346265598,1734851433634,-790.63,0.0001945,2]
[346265599,1734851433644,-500.0,0.0001945,2]
[346265600,1734851433653,-500.0,0.0001945,2]
[346265601,1734851433663,-4168.8,0.0001945,2]
[346265602,1734851433672,-500.0,0.0001945,2]
[346265603,1734851433683,-510.93240403,0.0001945,2]
[346265604,1734851433693,-500.0,0.0001945,2]
[346265605,1734851433703,-1314.77,0.0001945,2]
[346265606,1734851433713,-500.0,0.0001945,2]
[346265607,1734851433723,-739.33,0.0001945,2]
[346265608,1734851433733,-500.0,0.0001945,2]
[346265609,1734851433745,-500.0,0.0001945,2]
[346265610,1734851433754,-785.2,0.0001945,2]
[346265611,1734851433764,-500.0,0.0001945,2]
[346265612,1734851433774,-4428.84,0.0001945,2]
[346265613,1734851433785,-500.0,0.0001945,2]
[346265614,1734851433794,-637.4,0.0001945,2]
[346265615,1734851433804,-870.44,0.0001945,2]
[346265616,1734851433813,-500.0,0.0001945,2]
[346265617,1734851433824,-500.0,0.0001945,2]
[346265618,1734851433834,-500.0,0.0001945,2]
[346265619,1734851433843,-566.15,0.0001945,2]
[346265620,1734851433852,-530.41,0.0001945,2]
[346265621,1734851433861,-885.03,0.0001945,2]
[346265622,1734851433870,-500.0,0.0001945,2]
[346265623,1734851433880,-816.32,0.0001945,2]
[346265624,1734851433889,-581.43,0.0001945,2]
[346265625,1734851433898,-505.45516114,0.0001945,2]
[346265626,1734851433908,-550.62,0.0001945,2]
[346265627,1734851433918,-1681.49,0.0001945,2]
[346265628,1734851433927,-500.0,0.0001945,2]
[346265629,1734851433938,-1275.2,0.0001945,2]
[346265630,1734851433947,-571.51,0.0001945,2]
[346265631,1734851433956,-2373.04,0.0001945,2]
[346265632,1734851433965,-1466.74,0.0001945,2]
[346265633,1734851433975,-965.19,0.0001945,2]
[346265634,1734851433984,-573.59,0.0001945,2]
[346265635,1734851433993,-500.0,0.0001945,2]
[346265636,1734851434002,-538.69,0.0001945,2]
[346265637,1734851434012,-3194.37,0.0001945,2]
[346265638,1734851434021,-670.6,0.0001945,2]
[346265639,1734851434030,-500.0,0.0001945,2]
[346265640,1734851434039,-2155.14,0.0001945,2]
[346265641,1734851434048,-1037.33,0.0001945,2]
[346265642,1734851434057,-8865.5,0.0001945,2]
[346265643,1734851434066,-1320.51,0.0001945,2]
[346265644,1734851434075,-496.87762764,0.0001945,2]
[346265645,1734851434084,-3765.53,0.0001945,2]
[346265646,1734851434093,-953.42,0.0001945,2]
[346265647,1734851434103,-500.0,0.0001945,2]
[346265648,1734851434112,-500.0,0.0001945,2]
[346265649,1734851434121,-662.45,0.0001945,2]
[346265650,1734851434131,-1682.34,0.0001945,2]